Workbook

Sheet CallawardConfig
A1: ID[csknu] | B1: weightsCount[sn] | C1: library[csna] | D1: weightsMax[csna] | E1: weightsMin[csna] | F1: weights[sna] | G1: show[cna] | H1: odds[cn] | I1: priority[cn] | J1: single[sna] | K1: replace[sna] | L1: quality[csn]
A2: 掉落库ID | B2: 权重随机次数 | C2: 随机道具 | D2: 数量上限 | E2: 数量下限 | F2: 随机权重 | G2: 展示道具 | H2: 展示概率 | I2: 展示优先级 | J2: 独立次数 | K2: 替换库 | L2: 展示品质框颜色
A3: 1001 | B3: 1 | C3: 10101^10301^10501^12501^10901^11001^11101^12001^10601 | D3: 1^1^1^1^1^1^1^1^1 | E3: 1^1^1^1^1^1^1^1^1 | F3: 2000^2000^2000^2000^400^400^400^400^400 | G3: 10101^10301^10501^12501^10901^11001^11101^12001^10601 | H3: 31.35 | I3: 700 | J3: 0 | K3: 0 | L3: 1 | M3: 普通英雄库-高级召唤
A4: 1002 | B4: 1 | C4: 10102^10302^10502^12502^10802^10902^11002^11102^12002^11602^10602^12102^11302^11902 | D4: 1^1^1^1^1^1^1^1^1^1^1^1^1^1 | E4: 1^1^1^1^1^1^1^1^1^1^1^1^1^1 | F4: 2400^2300^2300^1000^100^300^300^300^300^100^300^100^100^100 | G4: 10102^10302^10502^12502^10802^10902^11002^11102^12002^11602^10602^12102^11302^11902 | H4: 11.82 | I4: 800 | J4: 0 | K4: 0 | L4: 2 | M4: 优秀英雄库-高级召唤
A5: 1003 | B5: 1 | C5: 10102^10302^10502^12502^10802^10902^11002^11102^12002^11602^10602^12102^11302^11902 | D5: 1^1^1^1^1^1^1^1^1^1^1^1^1^1 | E5: 1^1^1^1^1^1^1^1^1^1^1^1^1^1 | F5: 2400^2300^2300^1000^100^300^300^300^300^100^300^100^100^100 | G5: 10102^10302^10502^12502^10802^10902^11002^11102^12002^11602^10602^12102^11302^11902 | H5: 8.08 | I5: 900 | J5: 0 | K5: 0 | L5: 3 | M5: 稀有英雄库-高级召唤
A6: 1004 | B6: 1 | C6: 10104^10304^10504^12504^10804^10904^11004^11104^12004^11204^11504^11604^10604^12104^11304^10404^11704^11904^10704 | D6: 1^1^1^1^1^1^1^1^1^1^1^1^1^1^1^1^1^1^1 | E6: 1^1^1^1^1^1^1^1^1^1^1^1^1^1^1^1^1^1^1 | F6: 789^789^789^789^789^789^264^789^789^263^263^526^264^526^264^526^264^264^264 | G6: 10104^10304^10504^12504^10804^10904^11004^11104^12004^11204^11504^11604^10604^12104^11304^10404^11704^11904^10704 | H6: 2.49 | I6: 1000 | J6: 1^2 | K6: 1008^1008 | L6: 4 | M6: 精英英雄库-高级召唤
A7: 1005 | B7: 1 | C7: 150000^150003^150004^150005^150002^150006^150007 | D7: 5^5^5^5^5^5^5 | E7: 1^1^1^1^1^1^1 | F7: 1429^1429^1429^1429^1428^1428^1428 | G7: 150000^150003^150004^150005^150002^150006^150007 | H7: 5.47 | I7: 500 | J7: 0 | K7: 0 | L7: 1 | M7: 卡牌碎片库-高级召唤
A8: 1006 | B8: 1 | C8: 20101^20401^20501^20601^20701^20801^20301 | D8: 1^1^1^1^1^1^1 | E8: 1^1^1^1^1^1^1 | F8: 1429^1429^1429^1429^1428^1428^1428 | G8: 0 | H8: 0 | I8: 0 | J8: 0 | K8: 0 | L8: 3 | M8: 完整技能卡库-高级召唤
A9: 1007 | B9: 1 | C9: 10104^10504^12504 | D9: 1^1^1 | E9: 1^1^1 | F9: 3333^3334^3333 | G9: 0 | H9: 0 | I9: 0 | J9: 0 | K9: 0 | L9: 4 | M9: 高级召唤首次十连必出紫（基础紫卡随机）
A10: 1008 | B10: 1 | C10: 10104^10304^10504^12504^10804^10904^11004^11104^12004^11204^11504^11604^10604^12104 | D10: 1^1^1^1^1^1^1^1^1^1^1^1^1^1 | E10: 1^1^1^1^1^1^1^1^1^1^1^1^1^1 | F10: 715^715^715^715^714^714^714^714^714^714^714^714^714^714 | G10: 0 | H10: 0 | I10: 0 | J10: 0 | K10: 0 | L10: 4 | M10: 2-3次十连替换库(不出唯一卡）
A11: 1010 | B11: 1 | C11: 100001^140001^140002^140004^140006 | D11: 15000^15000^15000^15000^1 | E11: 10000^10000^10000^10000^1 | F11: 2450^2500^2500^2500^50 | G11: 100005^140504^140604^140704^140006 | H11: 40.79 | I11: 0 | J11: 1 | K11: 1007 | L11: 1 | M11: 普通材料框
A12: 2001 | B12: 1 | C12: 10101^10301^10501^12501^10901^11001^11101^12001^10601 | D12: 1^1^1^1^1^1^1^1^1 | E12: 1^1^1^1^1^1^1^1^1 | F12: 2000^2000^2000^2000^400^400^400^400^400 | G12: 10101^10301^10501^12501^10901^11001^11101^12001^10601 | H12: 62.25 | I12: 700 | J12: 0 | K12: 0 | L12: 1 | M12: 普通英雄库-普通召唤
A13: 2002 | B13: 1 | C13: 10101^10301^10501^12501^10901^11001^11101^12001^10601 | D13: 1^1^1^1^1^1^1^1^1^1^1^1^1^1 | E13: 1^1^1^1^1^1^1^1^1^1^1^1^1^1 | F13: 2400^2300^2300^1000^100^300^300^300^300^100^300^100^100^100 | G13: 10101^10301^10501^12501^10901^11001^11101^12001^10601 | H13: 22.34 | I13: 800 | J13: 0 | K13: 0 | L13: 2 | M13: 优秀英雄库-普通召唤
A14: 2003 | B14: 1 | C14: 10102^10302^10502^12502^10802^10902^11002^11102^12002^11602^10602^12102^11302^11902 | D14: 1^1^1^1^1^1^1^1^1^1^1^1^1^1 | E14: 1^1^1^1^1^1^1^1^1^1^1^1^1^1 | F14: 2400^2300^2300^1000^100^300^300^300^300^100^300^100^100^100 | G14: 10102^10302^10502^12502^10802^10902^11002^11102^12002^11602^10602^12102^11302^11902 | H14: 15.41 | I14: 900 | J14: 0 | K14: 0 | L14: 3 | M14: 稀有英雄库-普通召唤
A15: 2004 | B15: 1 | C15: 100001^140001^140002^140004 | D15: 120^120^120^120 | E15: 80^80^80^80 | F15: 2500^2500^2500^2500 | G15: 100002^140501^140601^140701 | H15: 0 | I15: 0 | J15: 1 | K15: 2008 | L15: 1
A16: 2005 | B16: 1 | C16: 100001^140001^140002^140004 | D16: 600^600^600^600 | E16: 300^300^300^300 | F16: 2500^2500^2500^2500 | G16: 100003^140502^140602^140702 | H16: 0 | I16: 0 | J16: 0 | K16: 0 | L16: 2
A17: 2006 | B17: 1 | C17: 100001^140001^140002^140004 | D17: 1200^1200^1200^1200 | E17: 800^800^800^800 | F17: 2500^2500^2500^2500 | G17: 100004^140503^140603^140703 | H17: 0 | I17: 0 | J17: 0 | K17: 0 | L17: 3
A18: 2007 | B18: 1 | C18: 100001^140001^140002^140004 | D18: 5500^5500^5500^5500 | E18: 4500^4500^4500^4500 | F18: 2500^2500^2500^2500 | G18: 100005^140504^140604^140704 | H18: 0 | I18: 0 | J18: 0 | K18: 0 | L18: 4
A19: 2008 | B19: 1 | C19: 11103 | D19: 1 | E19: 1 | F19: 10000 | G19: 0 | H19: 0 | I19: 0 | J19: 0 | K19: 0 | L19: 3 | M19: 普通召唤首次必出蓝卡
A20: 5001 | B20: 1 | C20: 210101^210201^210301^210401^210501^210601^210701^210801^210901^211001^220101^220201^220301^220401^220501^220601^230101^230201^230301^230401^230501^230601^240101^240201^240301^240401^240501^240601^250101^250201^250301^250401^250501^250601^260101^260201^260301^260401^260501^260601 | D20: 1^1^1^1^1^1^1^1^1^1^1^1^1^1^1^1^1^1^1^1^1^1^1^1^1^1^1^1^1^1^1^1^1^1^1^1^1^1^1^1 | E20: 1^1^1^1^1^1^1^1^1^1^1^1^1^1^1^1^1^1^1^1^1^1^1^1^1^1^1^1^1^1^1^1^1^1^1^1^1^1^1^1 | F20: 149^74^223^149^149^149^300^300^149^149^74^223^74^299^149^149^74^149^447^299^149^447^300^300^374^374^299^149^373^447^223^300^300^373^299^149^149^447^373^447 | G20: 210101^210201^210301^210401^210501^210601^210701^210801^210901^211001^220101^220201^220301^220401^220501^220601^230101^230201^230301^230401^230501^230601^240101^240201^240301^240401^240501^240601^250101^250201^250301^250401^250501^250601^260101^260201^260301^260401^260501^260601 | H20: 53.25 | I20: 600 | J20: 0 | K20: 0 | L20: 1 | M20: 普通装备库
A21: 5002 | B21: 1 | C21: 210102^210202^210302^210402^210502^210602^210702^210802^210902^211002^220102^220202^220302^220402^220502^220602^230102^230202^230302^230402^230502^230602^240102^240202^240302^240402^240502^240602^250102^250202^250302^250402^250502^250602^260102^260202^260302^260402^260502^260602 | D21: 1^1^1^1^1^1^1^1^1^1^1^1^1^1^1^1^1^1^1^1^1^1^1^1^1^1^1^1^1^1^1^1^1^1^1^1^1^1^1^1 | E21: 1^1^1^1^1^1^1^1^1^1^1^1^1^1^1^1^1^1^1^1^1^1^1^1^1^1^1^1^1^1^1^1^1^1^1^1^1^1^1^1 | F21: 149^74^223^149^149^149^300^300^149^149^74^223^74^299^149^149^74^149^447^299^149^447^300^300^374^374^299^149^373^447^223^300^300^373^299^149^149^447^373^447 | G21: 210102^210202^210302^210402^210502^210602^210702^210802^210902^211002^220102^220202^220302^220402^220502^220602^230102^230202^230302^230402^230502^230602^240102^240202^240302^240402^240502^240602^250102^250202^250302^250402^250502^250602^260102^260202^260302^260402^260502^260602 | H21: 21.37 | I21: 700 | J21: 0 | K21: 0 | L21: 2 | M21: 优秀装备库
A22: 5003 | B22: 1 | C22: 210103^210203^210303^210403^210503^210603^210703^210803^210903^211003^220103^220203^220303^220403^220503^220603^230103^230203^230303^230403^230503^230603^240103^240203^240303^240403^240503^240603^250103^250203^250303^250403^250503^250603^260103^260203^260303^260403^260503^260603 | D22: 1^1^1^1^1^1^1^1^1^1^1^1^1^1^1^1^1^1^1^1^1^1^1^1^1^1^1^1^1^1^1^1^1^1^1^1^1^1^1^1 | E22: 1^1^1^1^1^1^1^1^1^1^1^1^1^1^1^1^1^1^1^1^1^1^1^1^1^1^1^1^1^1^1^1^1^1^1^1^1^1^1^1 | F22: 149^74^223^149^149^149^300^300^149^149^74^223^74^299^149^149^74^149^447^299^149^447^300^300^374^374^299^149^373^447^223^300^300^373^299^149^149^447^373^447 | G22: 210103^210203^210303^210403^210503^210603^210703^210803^210903^211003^220103^220203^220303^220403^220503^220603^230103^230203^230303^230403^230503^230603^240103^240203^240303^240403^240503^240603^250103^250203^250303^250403^250503^250603^260103^260203^260303^260403^260503^260603 | H22: 15.14 | I22: 800 | J22: 0 | K22: 0 | L22: 3 | M22: 精良装备库
A23: 5004 | B23: 1 | C23: 210104^210204^210304^210404^210504^210604^210704^210804^210904^211004^220104^220204^220304^220404^220504^220604^230104^230204^230304^230404^230504^230604^240104^240204^240304^240404^240504^240604^250104^250204^250304^250404^250504^250604^260104^260204^260304^260404^260504^260604 | D23: 1^1^1^1^1^1^1^1^1^1^1^1^1^1^1^1^1^1^1^1^1^1^1^1^1^1^1^1^1^1^1^1^1^1^1^1^1^1^1^1 | E23: 1^1^1^1^1^1^1^1^1^1^1^1^1^1^1^1^1^1^1^1^1^1^1^1^1^1^1^1^1^1^1^1^1^1^1^1^1^1^1^1 | F23: 149^74^223^149^149^149^300^300^149^149^74^223^74^299^149^149^74^149^447^299^149^447^300^300^374^374^299^149^373^447^223^300^300^373^299^149^149^447^373^447 | G23: 210104^210204^210304^210404^210504^210604^210704^210804^210904^211004^220104^220204^220304^220404^220504^220604^230104^230204^230304^230404^230504^230604^240104^240204^240304^240404^240504^240604^250104^250204^250304^250404^250504^250604^260104^260204^260304^260404^260504^260604 | H23: 8.83 | I23: 900 | J23: 1 | K23: 2006 | L23: 4 | M23: 稀有装备库
A24: 5005 | B24: 1 | C24: 0 | D24: 0 | E24: 0 | F24: 0 | G24: 0 | H24: 0 | I24: 0 | J24: 0 | K24: 0 | L24: 0 | M24: 传说装备库
A25: 5006 | B25: 1 | C25: 210104^210204^210304^210404^210504^210604 | D25: 1^1^1^1^1^1 | E25: 1^1^1^1^1^1 | F25: 1667^1667^1667^1667^1666^1666 | G25: 0 | H25: 0 | I25: 0 | J25: 0 | K25: 0 | L25: 4 | M25: 首次十连替换库
A26: 5007 | B26: 1 | C26: 140007^140008^140009^140010^140011^140012 | D26: 3^3^3^3^3^3 | E26: 1^1^1^1^1^1 | F26: 1000^1800^1800^1800^1800^1800 | G26: 140007^140008^140009^140010^140011^140012 | H26: 0 | I26: 0 | J26: 0 | K26: 0 | L26: 1 | M26: 白色卷轴材料
A27: 5008 | B27: 1 | C27: 140007^140008^140009^140010^140011^140012 | D27: 10^10^10^10^10^10 | E27: 6^6^6^6^6^6 | F27: 1000^1800^1800^1800^1800^1800 | G27: 140007^140008^140009^140010^140011^140012 | H27: 0 | I27: 0 | J27: 0 | K27: 0 | L27: 2 | M27: 绿色卷轴材料
A28: 5009 | B28: 1 | C28: 140007^140008^140009^140010^140011^140012 | D28: 30^30^30^30^30^30 | E28: 20^20^20^20^20^20 | F28: 1000^1800^1800^1800^1800^1800 | G28: 140007^140008^140009^140010^140011^140012 | H28: 0 | I28: 0 | J28: 0 | K28: 0 | L28: 3 | M28: 蓝色卷轴材料

Sheet Sheet1
I1: 普通库 | J1: 稀有库 | W1: 英雄库 | X1: 普通库 | Y1: 稀有库 | AD1: 碎片库 | AE1: 碎片库 | AF1: 普通库
B2: 普通/白 | C2: 优秀/绿 | D2: 精良/蓝 | E2: 稀有/紫 | F2: 传说/橙 | G2: 神话/红 | H2: ^ | I2: 概率 | J2: 概率 | L2: 卡牌碎片 | M2: 卡牌技能 | N2: 碎片数量上 | O2: 碎片数量下 | P2: 概率 | R2: 普通英雄库 | S2: 优秀英雄库 | T2: 稀有英雄库 | U2: 精英英雄库 | W2: 数量 | X2: 概率 | Y2: 概率 | Z2: 首次十连必出库 | AB2: 技能卡牌碎片库 | AC2: 完整技能卡库 | AD2: 数量上限 | AE2: 数量下限 | AF2: 概率
A3: 枪兵 | B3: 10101 | C3: =B3+1 -> 10102 | D3: =C3+1 -> 10103 | E3: 10104 | F3: =E3+3 -> 10107 | G3: =F3+4 -> 10111 | H3: 1 | I3: =ROUND((10000/19)*1,0)+1 -> 527 | J3: =ROUND((10000/19)*1.5,0) -> 789 | L3: 150000 | M3: 20101 | N3: 1 | O3: 5 | P3: =ROUND(10000/7,0) -> 1429 | R3: =B3&$H$2&B4&$H$2&B5&$H$2&B6&$H$2&B7&$H$2&B8&$H$2&B9&$H$2&B10&$H$2&B11&$H$2&B12&$H$2&B13&$H$2&B14&$H$2&B15&$H$2&B16&$H$2&B17&$H$2&B18&$H$2&B19&$H$2&B20&$H$2&B21 -> 10101^10301^10501^12501^10801^10901^11001^11101^12001^11201^11501^11601^10601^12101^11301^10401^11701^11901^10701 | S3: =C3&$H$2&C4&$H$2&C5&$H$2&C6&$H$2&C7&$H$2&C8&$H$2&C9&$H$2&C10&$H$2&C11&$H$2&C12&$H$2&C13&$H$2&C14&$H$2&C15&$H$2&C16&$H$2&C17&$H$2&C18&$H$2&C19&$H$2&C20&$H$2&C21 -> 10102^10302^10502^12502^10802^10902^11002^11102^12002^11202^11502^11602^10602^12102^11302^10402^11702^11902^10702 | T3: =D3&$H$2&D4&$H$2&D5&$H$2&D6&$H$2&D7&$H$2&D8&$H$2&D9&$H$2&D10&$H$2&D11&$H$2&D12&$H$2&D13&$H$2&D14&$H$2&D15&$H$2&D16&$H$2&D17&$H$2&D18&$H$2&D19&$H$2&D20&$H$2&D21 -> 10103^10303^10503^12503^10803^10903^11003^11103^12003^11203^11503^11603^10603^12103^11303^10403^11703^11903^10703 | U3: =E3&$H$2&E4&$H$2&E5&$H$2&E6&$H$2&E7&$H$2&E8&$H$2&E9&$H$2&E10&$H$2&E11&$H$2&E12&$H$2&E13&$H$2&E14&$H$2&E15&$H$2&E16&$H$2&E17&$H$2&E18&$H$2&E19&$H$2&E20&$H$2&E21 -> 10104^10304^10504^12504^10804^10904^11004^11104^12004^11204^11504^11604^10604^12104^11304^10404^11704^11904^10704 | W3: =H3&$H$2&H4&$H$2&H5&$H$2&H6&$H$2&H7&$H$2&H8&$H$2&H9&$H$2&H10&$H$2&H11&$H$2&H12&$H$2&H13&$H$2&H14&$H$2&H15&$H$2&H16&$H$2&H17&$H$2&H18&$H$2&H19&$H$2&H20&$H$2&H21 -> 1^1^1^1^1^1^1^1^1^1^1^1^1^1^1^1^1^1^1 | X3: =I3&$H$2&I4&$H$2&I5&$H$2&I6&$H$2&I7&$H$2&I8&$H$2&I9&$H$2&I10&$H$2&I11&$H$2&I12&$H$2&I13&$H$2&I14&$H$2&I15&$H$2&I16&$H$2&I17&$H$2&I18&$H$2&I19&$H$2&I20&$H$2&I21 -> 527^527^527^527^527^527^526^526^526^526^526^526^526^526^526^526^526^526^526 | Y3: =J3&$H$2&J4&$H$2&J5&$H$2&J6&$H$2&J7&$H$2&J8&$H$2&J9&$H$2&J10&$H$2&J11&$H$2&J12&$H$2&J13&$H$2&J14&$H$2&J15&$H$2&J16&$H$2&J17&$H$2&J18&$H$2&J19&$H$2&J20&$H$2&J21 -> 789^789^789^789^789^789^264^789^789^263^263^526^264^526^264^526^264^264^264 | Z3: =E3&$H$2&E4&$H$2&E5&$H$2&E6&$H$2&E7&$H$2&E11 -> 10104^10304^10504^12504^10804^12004 | AA3: =E3&$H$2&E4&$H$2&E5&$H$2&E6&$H$2&E7&$H$2&E8&$H$2&E9&$H$2&E10&$H$2&E11&$H$2&E12&$H$2&E13&$H$2&E14&$H$2&E15&$H$2&E16 -> 10104^10304^10504^12504^10804^10904^11004^11104^12004^11204^11504^11604^10604^12104 | AB3: =L3&$H$2&L4&$H$2&L5&$H$2&L6&$H$2&L7&$H$2&L8&$H$2&L9 -> 150000^150003^150004^150005^150002^150006^150007 | AC3: =M3&$H$2&M4&$H$2&M5&$H$2&M6&$H$2&M7&$H$2&M8&$H$2&M9 -> 20101^20401^20501^20601^20701^20801^20301 | AD3: =N3&$H$2&N4&$H$2&N5&$H$2&N6&$H$2&N7&$H$2&N8&$H$2&N9 -> 1^1^1^1^1^1^1 | AE3: =O3&$H$2&O4&$H$2&O5&$H$2&O6&$H$2&O7&$H$2&O8&$H$2&O9 -> 5^5^5^5^5^5^5 | AF3: =P3&$H$2&P4&$H$2&P5&$H$2&P6&$H$2&P7&$H$2&P8&$H$2&P9 -> 1429^1429^1429^1429^1428^1428^1428
A4: 火枪 | B4: 10301 | C4: =B4+1 -> 10302 | D4: 10303 | E4: 10304 | F4: =E4+3 -> 10307 | G4: =F4+4 -> 10311 | H4: 1 | I4: =ROUND((10000/19)*1,0)+1 -> 527 | J4: =ROUND((10000/19)*1.5,0) -> 789 | L4: 150003 | M4: 20401 | N4: 1 | O4: 5 | P4: =ROUND(10000/7,0) -> 1429
A5: 小丑 | B5: 10501 | C5: =B5+1 -> 10502 | D5: 10503 | E5: 10504 | F5: 10507 | G5: 10511 | H5: 1 | I5: 527 | J5: 789 | L5: 150004 | M5: 20501 | N5: 1 | O5: 5 | P5: 1429 | Z5: 1667 | AA5: 715
A6: 史莱姆 | B6: 12501 | C6: =B6+1 -> 12502 | D6: 12503 | E6: 12504 | F6: 12507 | G6: 12511 | H6: 1 | I6: 527 | J6: 789 | L6: 150005 | M6: 20601 | N6: 1 | O6: 5 | P6: 1429 | Z6: 1667 | AA6: 715
A7: 阿拉丁 | B7: 10801 | C7: =B7+1 -> 10802 | D7: 10803 | E7: 10804 | F7: 10807 | G7: 10811 | H7: 1 | I7: 527 | J7: 789 | L7: 150002 | M7: 20701 | N7: 1 | O7: 5 | P7: =ROUND(10000/7,0)-1 -> 1428 | Z7: 1667 | AA7: 715
A8: 黑魔王 | B8: 10901 | C8: =B8+1 -> 10902 | D8: 10903 | E8: 10904 | F8: 10907 | G8: 10911 | H8: 1 | I8: 527 | J8: 789 | L8: 150006 | M8: 20801 | N8: 1 | O8: 5 | P8: 1428 | Z8: 1667 | AA8: 715
A9: 萨莉 | B9: 11001 | C9: =B9+1 -> 11002 | D9: 11003 | E9: 11004 | F9: 11007 | G9: 11011 | H9: 1 | I9: =ROUND((10000/19)*1,0) -> 526 | J9: =ROUND((10000/19)*0.5,0)+1 -> 264 | L9: 150007 | M9: 20301 | N9: 1 | O9: 5 | P9: =ROUND(10000/7,0)-1 -> 1428 | Z9: 1666 | AA9: 714
A10: 巨汉 | B10: 11101 | C10: =B10+1 -> 11102 | D10: 11103 | E10: 11104 | F10: 11107 | G10: 11111 | H10: 1 | I10: 526 | J10: 789 | Z10: 1666 | AA10: 714
A11: 布鲁斯 | B11: 12001 | C11: =B11+1 -> 12002 | D11: 12003 | E11: 12004 | F11: 12007 | G11: 12011 | H11: 1 | I11: 526 | J11: 789 | Z11: 1667^1667^1667^1667^1666^1666 | AA11: 714
A12: 奥利尔 | B12: 11201 | C12: =B12+1 -> 11202 | D12: 11203 | E12: 11204 | F12: 11207 | G12: 11211 | H12: 1 | I12: 526 | J12: =ROUND((10000/19)*0.5,0) -> 263 | AA12: 714
A13: 露娜 | B13: 11501 | C13: =B13+1 -> 11502 | D13: 11503 | E13: 11504 | F13: 11507 | G13: 11511 | H13: 1 | I13: 526 | J13: 263 | AA13: 714
A14: 玛格尼斯 | B14: 11601 | C14: =B14+1 -> 11602 | D14: 11603 | E14: 11604 | F14: 11607 | G14: 11611 | H14: 1 | I14: 526 | J14: 526 | AA14: 714
A15: 特查拉 | B15: 10601 | C15: =B15+1 -> 10602 | D15: 10603 | E15: 10604 | F15: 10607 | G15: 10611 | H15: 1 | I15: 526 | J15: =ROUND((10000/19)*0.5,0)+1 -> 264 | AA15: 714
A16: 浣熊卫队 | B16: 12101 | C16: =B16+1 -> 12102 | D16: 12103 | E16: 12104 | F16: 12107 | G16: 12111 | H16: 1 | I16: 526 | J16: 526 | AA16: 714
A17: 玛法里奥 | B17: 11301 | C17: =B17+1 -> 11302 | D17: 11303 | E17: 11304 | F17: 11307 | G17: 11311 | H17: 1 | I17: 526 | J17: =ROUND((10000/19)*0.5,0)+1 -> 264 | AA17: 714
A18: 罗宾 | B18: 10401 | C18: =B18+1 -> 10402 | D18: 10403 | E18: 10404 | F18: 10407 | G18: 10411 | H18: 1 | I18: 526 | J18: 526 | AA18: 714
A19: 希瓦娜 | B19: 11701 | C19: =B19+1 -> 11702 | D19: 11703 | E19: 11704 | F19: 11707 | G19: 11711 | H19: 1 | I19: 526 | J19: =ROUND((10000/19)*0.5,0)+1 -> 264 | AA19: 715^715^715^715^714^714^714^714^714^714^714^714^714^714
A20: 铁皮人 | B20: 11901 | C20: =B20+1 -> 11902 | D20: 11903 | E20: 11904 | F20: 11907 | G20: 11911 | H20: 1 | I20: 526 | J20: 264 | AA20: 1^1^1^1^1^1^1^1^1^1^1^1^1^1
A21: 宇智波 | B21: 10701 | C21: =B21+1 -> 10702 | D21: 10703 | E21: 10704 | F21: 10707 | G21: 10711 | H21: 1 | I21: 526 | J21: =ROUND((10000/19)*0.5,0)+1 -> 264
